fUST/lending_fUST_20241008
["ID","MTS","AMOUNT","RATE_DAILY","PERIOD"]
[340025929,1728334321284,-914.39,0.00041643,120]
[340025930,1728334321295,-500.0,0.00041643,120]
[340025931,1728334321306,-500.0,0.00041643,120]
[340025932,1728334321318,-500.0,0.00041643,120]
[340025933,1728334321330,-500.0,0.00041643,120]
[340025934,1728334321341,-520.88145485,0.00041643,120]
[340025935,1728334321352,-500.0,0.00041643,120]
[340025936,1728334321363,-500.0,0.00041643,120]
[340025937,1728334321375,-197.45430126,0.00041643,120]
[340025938,1728334321386,-500.0,0.00041643,120]
[340025939,1728334321397,-1047.98,0.00041643,120]
[340025940,1728334321408,-500.0,0.00041643,120]
[340025941,1728334321419,-683.38,0.00041643,120]
[340025942,1728334321431,-500.0,0.00041643,120]
[340025943,1728334321443,-1235.61,0.00041643,120]
[340025944,1728334321454,-1137.42,0.00041643,120]
[340025945,1728334321465,-500.0,0.00041643,120]
[340025946,1728334321482,-500.0,0.00041643,120]
[340025947,1728334321494,-500.0,0.00041643,120]
[340025948,1728334321505,-575.41,0.00041643,120]
[340025949,1728334321516,-500.0,0.00041643,120]
[340025950,1728334321527,-500.0,0.00041643,120]
[340025951,1728334321538,-800.54,0.00041643,120]
[340025952,1728334321549,-500.0,0.00041643,120]
[340025953,1728334321561,-709.12,0.00041643,120]
[340025954,1728334321575,-711.22,0.00041643,120]
[340025955,1728334321589,-500.0,0.00041643,120]
[340025956,1728334321601,-550.77,0.00041643,120]
[340025957,1728334321614,-500.0,0.00041643,120]
[340025958,1728334321627,-744.73,0.00041643,120]
[340025959,1728334321639,-500.0,0.00041643,120]
[340025960,1728334321651,-750.18,0.00041643,120]
[340025961,1728334321665,-541.33413065,0.00041643,120]
[340025962,1728334321679,-607.18,0.00041643,120]
[340025963,1728334321691,-1202.82,0.00041643,120]
[340025964,1728334321703,-500.0,0.00041643,120]
[340025965,1728334321715,-1170.58,0.00041643,120]
[340025966,1728334321727,-500.0,0.00041643,120]
[340025967,1728334321739,-500.0,0.00041643,120]
[340025968,1728334321751,-637.28,0.00041643,120]
[340025969,1728334321763,-500.0,0.00041643,120]
[340025970,1728334321775,-500.0,0.00041643,120]
[340025971,1728334321786,-1008.72,0.00041643,120]
[340025972,1728334321797,-500.0,0.00041643,120]
[340025973,1728334321812,-576.24,0.00041643,120]
[340025974,1728334321823,-787.72,0.00041643,120]
[340025975,1728334321836,-500.0,0.00041643,120]
[340025976,1728334321846,-687.3,0.00041643,120]
[340025977,1728334321858,-500.0,0.00041643,120]
[340025978,1728334322153,-917.09,0.00041643,120]
[340025979,1728334322202,-1008.32,0.00041643,120]
[340025980,1728334322212,-1051.57,0.00041643,120]
[340025981,1728334322223,-500.0,0.00041643,120]
[340025982,1728334322233,-677.92,0.00041643,120]
[340025983,1728334322242,-500.0,0.00041643,2]
[340025984,1728334322251,-500.0,0.00041643,120]
[340025985,1728334322261,-529.97,0.00041643,120]
[340025986,1728334322271,-1141.57,0.00041643,120]
[340025987,1728334322280,-954.06,0.00041643,120]
[340025988,1728334322289,-865.56,0.00041643,120]
[340025989,1728334322299,-818.05,0.00041643,120]
[340025990,1728334322308,-500.0,0.00041643,120]
[340025991,1728334322317,-647.55,0.00041643,120]
[340025992,1728334322326,-504.35,0.00041643,120]
[340025993,1728334322336,-500.0,0.00041643,120]
[340025994,1728334322345,-851.04,0.00041643,120]
[340025995,1728334322354,-500.0,0.00041643,120]
[340025996,1728334322363,-523.84,0.00041643,120]
[340025997,1728334322373,-757.96,0.00041643,30]
[340025998,1728334322382,-563.6,0.00041643,120]
[340025999,1728334322392,-555.29,0.00041643,120]
[340026000,1728334322401,-481.48869347,0.00041643,120]
[340026001,1728334322410,-500.0,0.00041643,120]
[340026002,1728334322419,-500.0,0.00041643,120]
[340026003,1728334322429,-500.0,0.00041643,120]
[340026004,1728334322438,-743.56,0.00041643,120]
[340026005,1728334322447,-500.0,0.00041643,120]
[340026006,1728334322457,-754.92,0.00041643,120]
[340026007,1728334322466,-1365.58,0.00041643,120]
[340026008,1728334322477,-500.0,0.00041643,120]
[340026009,1728334322486,-623.42,0.00041643,120]
[340026010,1728334322496,-861.29,0.00041643,120]
[340026011,1728334322506,-573.92,0.00041643,120]
[340026012,1728334322517,-555.73,0.00041643,120]
[340026013,1728334322528,-917.57,0.00041643,120]
[340026014,1728334322538,-500.0,0.00041643,120]
[340026015,1728334322549,-500.0,0.00041643,120]
[340026016,1728334322561,-544.85,0.00041643,120]
[340026017,1728334322573,-508.27596797,0.00041643,120]
[340026018,1728334322585,-571.4,0.00041643,60]
[340026019,1728334322595,-500.0,0.00041643,120]
[340026020,1728334322606,-719.55,0.00041643,120]
[340026021,1728334322616,-640.61,0.00041643,120]
[340026022,1728334322627,-500.0,0.00041643,120]
[340026023,1728334322637,-918.63,0.00041643,120]
[340026024,1728334322646,-812.73,0.00041643,120]
[340026025,1728334322656,-500.0,0.00041643,120]
[340026026,1728334322665,-500.0,0.00041643,120]
[340026027,1728334322675,-502.3,0.00041643,120]
[340026028,1728334322687,-500.0,0.00041643,120]
[340026029,1728334322699,-708.61,0.00041643,120]
[340026030,1728334322710,-537.44,0.00041643,120]
[340026031,1728334322722,-500.0,0.00041643,120]
[340026032,1728334322734,-610.21,0.00041643,120]
[340026033,1728334322747,-554.6,0.00041643,120]
[340026034,1728334322758,-418.25915132,0.00041643,120]
[340026035,1728334322767,-502.86279853,0.00041643,120]
[340026036,1728334322778,-500.0,0.00041643,120]
[340026037,1728334322789,-500.0,0.00041643,120]
[340026038,1728334322799,-500.0,0.00041643,120]
[340026039,1728334322809,-760.72,0.00041643,120]
[340026040,1728334322820,-494.72904795,0.00041643,120]
[340026041,1728334322830,-505.93,0.00041643,120]
[340026042,1728334322840,-500.0,0.00041643,120]
[340026043,1728334322851,-579.67,0.00041643,120]
[340026044,1728334322862,-500.0,0.00041643,120]
[340026045,1728334322874,-500.0,0.00041643,120]
[340026046,1728334322885,-500.0,0.00041643,120]
[340026047,1728334322895,-909.57,0.00041643,120]
[340026048,1728334322906,-699.58,0.00041643,120]
[340026049,1728334322916,-778.22,0.00041643,120]
[340026050,1728334322926,-1176.62,0.00041643,120]
[340026051,1728334322936,-538.25,0.00041643,120]
[340026052,1728334322946,-500.0,0.00041643,120]
[340026053,1728334322956,-628.45,0.00041643,120]
[340026054,1728334322966,-799.02,0.00041643,120]
[340026055,1728334322977,-1344.11,0.00041643,21]
[340026056,1728334322986,-500.0,0.00041643,120]
[340026057,1728334322996,-500.0,0.00041643,120]
[340026058,1728334323006,-1176.49,0.00041643,120]
[340026059,1728334323016,-500.0,0.00041643,120]
[340026060,1728334323026,-538.89,0.00041643,120]
[340026061,1728334323036,-500.0,0.00041643,120]
[340026062,1728334323045,-500.0,0.00041643,120]
[340026063,1728334323056,-2556.51,0.00041643,120]
[340026064,1728334323066,-500.0,0.00041643,120]
[340026065,1728334323076,-500.0,0.00041643,120]
[340026066,1728334323086,-686.35,0.00041643,120]
[340026067,1728334323097,-500.0,0.00041643,120]
[340026068,1728334323107,-1127.5,0.00041643,120]
[340026069,1728334323119,-336.73,0.00041643,7]
[340026070,1728334323129,-618.33,0.00041643,120]
[340026071,1728334323139,-557.71,0.00041643,120]
[340026072,1728334323150,-554.61,0.00041643,120]
[340026073,1728334323160,-724.85,0.00041643,120]
[340026074,1728334323171,-445.22115281,0.00041643,120]
[340026075,1728334323183,-591.81673469,0.00041643,120]
[340026076,1728334323194,-500.0,0.00041643,120]
[340026077,1728334323205,-500.0,0.00041643,120]
[340026078,1728334323215,-500.0,0.00041643,120]
[340026079,1728334323226,-251.1421854,0.00041643,120]
[340026080,1728334323236,-1000.0,0.00041643,120]
[340026081,1728334323246,-575.14,0.00041643,120]
[340026082,1728334323256,-370.91106964,0.00041643,120]
[340026083,1728334323265,-500.0,0.00041643,120]
[340026084,1728334323275,-500.0,0.00041643,120]
[340026085,1728334323285,-501.94,0.00041643,120]
[340026086,1728334323295,-500.0,0.00041643,120]
[340026087,1728334323306,-557.73,0.00041643,120]
[340026088,1728334323316,-819.33,0.00041643,120]
[340026089,1728334323326,-521.05,0.00041643,120]
[340026090,1728334323337,-1265.51,0.00041643,120]
[340026091,1728334323347,-518.1,0.00041643,120]
[340026092,1728334323357,-583.01,0.00041643,120]
[340026093,1728334323367,-500.0,0.00041643,120]
[340026094,1728334323376,-500.0,0.00041643,120]
[340026095,1728334323387,-500.0,0.00041643,120]
[340026096,1728334323397,-500.0,0.00041643,120]
[340026097,1728334323407,-1208.8,0.00041643,120]
[340026098,1728334323417,-500.0,0.00041643,120]
[340026099,1728334323426,-500.0,0.00041643,120]
[340026100,1728334323436,-500.0,0.00041643,120]
[340026101,1728334323446,-618.94,0.00041643,120]
[340026102,1728334323456,-500.0,0.00041643,120]
[340026103,1728334323466,-500.0,0.00041643,120]
[340026104,1728334323478,-500.0,0.00041643,120]
[340026105,1728334323488,-718.42,0.00041643,120]
[340026106,1728334323499,-705.43,0.00041643,120]
[340026107,1728334323509,-500.0,0.00041643,120]
[340026108,1728334323519,-512.16,0.00041643,7]
[340026109,1728334323529,-1000.59,0.00041643,120]
[340026110,1728334323539,-331.57416177,0.00041643,120]
[340026111,1728334323550,-500.0,0.00041643,120]
[340026112,1728334323560,-2499.96,0.00041643,120]
[340026113,1728334323571,-500.0,0.00041643,120]
[340026114,1728334323582,-550.18,0.00041643,120]
[340026115,1728334323592,-615.51,0.00041643,120]
[340026116,1728334323603,-500.0,0.00041643,120]
[340026117,1728334323613,-500.0,0.00041643,120]
[340026118,1728334323623,-824.07,0.00041643,120]
[340026119,1728334323633,-1097.32,0.00041643,120]
[340026120,1728334323644,-500.0,0.00041643,120]
[340026121,1728334323654,-500.0,0.00041643,120]
[340026122,1728334323664,-500.0,0.00041643,120]
[340026123,1728334323675,-516.16,0.00041643,120]
[340026124,1728334323685,-500.0,0.00041643,120]
[340026125,1728334323695,-500.0,0.00041643,120]
[340026126,1728334323706,-514.48,0.00041643,120]
[340026127,1728334323715,-500.0,0.00041643,120]
[340026128,1728334323731,-500.0,0.00041643,120]
[340026129,1728334323741,-584.54,0.00041643,120]
[340026130,1728334323750,-500.0,0.00041643,120]
[340026131,1728334323760,-502.32,0.00041643,120]
[340026132,1728334323771,-500.0,0.00041643,120]
[340026133,1728334323781,-500.0,0.00041643,120]
[340026134,1728334323791,-200.0,0.00041643,120]
[340026135,1728334323801,-659.67,0.00041643,30]
[340026136,1728334323811,-843.64,0.00041643,120]
[340026137,1728334323821,-500.0,0.00041643,120]
[340026138,1728334323831,-826.06,0.00041643,120]
[340026139,1728334323841,-844.53,0.00041643,120]
[340026140,1728334323851,-500.0,0.00041643,120]
[340026141,1728334323861,-292.29672114,0.00041643,120]
[340026142,1728334323871,-500.0,0.00041643,120]
[340026143,1728334323881,-500.0,0.00041643,120]
[340026144,1728334323891,-863.29,0.00041643,120]
[340026145,1728334323901,-714.69,0.00041643,120]
[340026146,1728334323910,-500.0,0.00041643,120]
[340026147,1728334323919,-513.9284014,0.00041643,120]
[340026148,1728334323929,-500.0,0.00041643,120]
[340026149,1728334323938,-500.0,0.00041643,120]
[340026150,1728334323948,-537.33,0.00041643,120]
[340026151,1728334323958,-209.27147587,0.00041643,120]
[340026152,1728334323968,-611.81,0.00041643,120]
[340026153,1728334323978,-500.0,0.00041643,120]
[340026154,1728334323988,-500.0,0.00041643,120]
[340026155,1728334323998,-679.62,0.00041643,120]
[340026156,1728334324009,-203.48751827,0.00041643,120]
[340026157,1728334324019,-769.77,0.00041643,120]
[340026158,1728334324029,-500.0,0.00041643,120]
[340026159,1728334324040,-944.22,0.00041643,120]
[340026160,1728334324051,-500.0,0.00041643,120]
[340026161,1728334324061,-514.42,0.00041643,120]
[340026162,1728334324072,-566.31509326,0.00041643,120]
[340026163,1728334324083,-677.66,0.00041643,120]
[340026164,1728334324093,-1557.94,0.00041917,120]
[340026165,1728334324104,-500.0,0.00041917,120]
[340026166,1728334324114,-500.0,0.00041917,120]
[340026167,1728334324129,-878.3,0.00041917,120]
[340026168,1728334324140,-545.39,0.00041917,120]
[340026169,1728334324152,-603.96,0.00041917,120]
[340026170,1728334324163,-500.0,0.00041917,120]
[340026171,1728334324174,-500.0,0.00041917,90]
[340026172,1728334324186,-500.0,0.00041917,120]
[340026173,1728334324197,-800.19,0.00041917,120]
[340026174,1728334324209,-751.04,0.00041917,120]
[340026175,1728334324220,-500.0,0.00041917,7]
[340026176,1728334324231,-500.0,0.00041917,120]
[340026177,1728334324241,-500.0,0.00041917,120]
[340026178,1728334324251,-841.21,0.00041917,120]
[340026179,1728334324262,-500.0,0.00041917,120]
[340026180,1728334324272,-481.29991346,0.00041917,120]
[340026181,1728334324282,-500.0,0.00041917,120]
[340026182,1728334324292,-612.78,0.00041917,120]
[340026183,1728334324301,-500.0,0.00041917,120]
[340026184,1728334324312,-589.28,0.00041917,120]
[340026185,1728334324322,-500.0,0.00041917,120]
[340026186,1728334324332,-557.3,0.00041917,120]
[340026187,1728334324343,-500.0,0.00041917,120]
[340026188,1728334324353,-500.0,0.00041917,120]
[340026189,1728334324364,-500.0,0.00041917,120]
[340026190,1728334324373,-500.0,0.00041917,120]
[340026191,1728334324383,-949.88,0.00041917,120]
[340026192,1728334324393,-660.6,0.00041917,120]
[340026193,1728334324405,-500.0,0.00041917,120]
[340026194,1728334324415,-754.75,0.00041917,120]
[340026195,1728334324426,-818.47,0.00041917,120]
[340026196,1728334324436,-550.91,0.00041917,120]
[340026197,1728334324447,-500.0,0.00041917,120]
[340026198,1728334324456,-625.1,0.00041917,120]
[340026199,1728334324466,-914.39,0.00041917,120]
[340026200,1728334324477,-500.0,0.00041917,120]
[340026201,1728334324488,-500.0,0.00041917,120]
[340026202,1728334324498,-435.2266044,0.00041917,120]
[340026203,1728334324508,-500.0,0.00041917,120]
[340026204,1728334324518,-500.0,0.00041917,120]
[340026205,1728334324528,-500.0,0.00041917,120]
[340026206,1728334324538,-500.0,0.00041917,120]
[340026207,1728334324548,-1047.98,0.00041917,120]
[340026208,1728334324559,-500.0,0.00041917,120]
[340026209,1728334324568,-683.38,0.00041917,120]
[340026210,1728334324579,-500.0,0.00041917,120]
[340026211,1728334324590,-1235.61,0.00041917,120]
[340026212,1728334324600,-1137.42,0.00041917,120]
[340026213,1728334324610,-500.0,0.00041917,120]
[340026214,1728334324620,-500.0,0.00041917,120]
[340026215,1728334324630,-500.0,0.00041917,120]
[340026216,1728334324641,-575.41,0.00041917,120]
[340026217,1728334324651,-152.84778025,0.00041917,120]
[340026218,1728334324661,-500.0,0.00041917,120]
[340026219,1728334324672,-800.54,0.00041917,120]
[340026220,1728334324682,-500.0,0.00041917,120]
[340026221,1728334324693,-709.12,0.00041917,120]
[340026222,1728334324703,-711.22,0.00041917,120]
[340026223,1728334324713,-500.0,0.00041917,120]
[340026224,1728334324724,-550.77,0.00041917,120]
[340026225,1728334324734,-500.0,0.00041917,120]
[340026226,1728334324744,-744.73,0.00041917,120]
[340026227,1728334324754,-500.0,0.00041917,120]
[340026228,1728334324764,-750.18,0.00041917,120]
[340026229,1728334324774,-607.18,0.00041917,120]
[340026230,1728334324783,-1202.82,0.00041917,120]
[340026231,1728334324793,-500.0,0.00041917,120]
[340026232,1728334324803,-1170.58,0.00041917,120]
[340026233,1728334324812,-500.0,0.00041917,120]
[340026234,1728334324822,-500.0,0.00041917,120]
[340026235,1728334324832,-637.28,0.00041917,120]
[340026236,1728334324842,-500.0,0.00041917,120]
[340026237,1728334324853,-500.0,0.00041917,120]
[340026238,1728334324863,-1008.72,0.00041917,120]
[340026239,1728334324872,-500.0,0.00041917,120]
[340026240,1728334324882,-576.24,0.00041917,120]
[340026241,1728334324891,-787.72,0.00041917,120]
[340026242,1728334324901,-500.0,0.00041917,120]
[340026243,1728334324910,-687.3,0.00041917,120]
[340026244,1728334324920,-500.0,0.00041917,120]
[340026245,1728334324930,-917.09,0.00041917,120]
[340026246,1728334324940,-1008.32,0.00041917,120]
[340026247,1728334324950,-1051.57,0.00041917,120]
[340026248,1728334324960,-500.0,0.00041917,120]
[340026249,1728334324972,-677.92,0.00041917,120]
[340026250,1728334324982,-500.0,0.00041917,2]
[340026251,1728334324991,-500.0,0.00041917,120]
[340026252,1728334325003,-529.97,0.00041917,120]
[340026253,1728334325014,-1141.57,0.00041917,120]
[340026254,1728334325026,-954.06,0.00041917,120]
[340026255,1728334325038,-865.56,0.00041917,120]
[340026256,1728334325048,-818.05,0.00041917,120]
[340026257,1728334325058,-500.0,0.00041917,120]
[340026258,1728334325067,-647.55,0.00041917,120]
[340026259,1728334325077,-504.35,0.00041917,120]
[340026260,1728334325087,-538.12905646,0.00041917,120]
[340026261,1728334325097,-851.04,0.00041917,120]
[340026262,1728334325107,-500.0,0.00041917,120]
[340026263,1728334325118,-523.84,0.00041917,120]
[340026264,1728334325129,-757.96,0.00041917,30]
[340026265,1728334325139,-563.6,0.00041917,120]
[340026266,1728334325149,-555.29,0.00041917,120]
[340026267,1728334325159,-413.95615178,0.00041917,120]
[340026268,1728334325169,-500.0,0.00041917,120]
[340026269,1728334325179,-500.0,0.00041917,120]
[340026270,1728334325188,-743.56,0.00041917,120]
[340026271,1728334325198,-500.0,0.00041917,120]
[340026272,1728334325208,-754.92,0.00041917,120]
[340026273,1728334325217,-1365.58,0.00041917,120]
[340026274,1728334325228,-447.23182092,0.00041917,120]
[340026275,1728334325238,-623.42,0.00041917,120]
[340026276,1728334325247,-861.29,0.00041917,120]
[340026277,1728334325257,-573.92,0.00041917,120]
[340026278,1728334325267,-555.73,0.00041917,120]
[340026279,1728334325277,-917.57,0.00041917,120]
[340026280,1728334325286,-249.27121794,0.00041917,120]
[340026281,1728334325297,-500.0,0.00041917,120]
[340026282,1728334325306,-544.85,0.00041917,120]
[340026283,1728334325315,-571.4,0.00041917,60]
[340026284,1728334325325,-500.0,0.00041917,120]
[340026285,1728334325334,-719.55,0.00041917,120]
[340026286,1728334325344,-640.61,0.00041917,120]
[340026287,1728334325354,-500.0,0.00041917,120]
[340026288,1728334325363,-918.63,0.00041917,120]
[340026289,1728334325373,-812.73,0.00041917,120]
[340026290,1728334325383,-500.0,0.00041917,120]
[340026291,1728334325392,-500.0,0.00041917,120]
[340026292,1728334325402,-502.3,0.00041917,120]
[340026293,1728334325414,-500.0,0.00041917,120]
[340026294,1728334325425,-708.61,0.00041917,120]
[340026295,1728334325435,-537.44,0.00041917,120]
[340026296,1728334325445,-500.0,0.00041917,120]
[340026297,1728334325455,-610.21,0.00041917,120]
[340026298,1728334325466,-554.6,0.00041917,120]
[340026299,1728334325478,-500.0,0.00041917,120]
[340026300,1728334325488,-500.0,0.00041917,120]
[340026301,1728334325498,-500.0,0.00041917,120]
[340026302,1728334325674,-760.72,0.00041917,120]
[340026303,1728334325689,-505.93,0.00041917,120]
[340026304,1728334325701,-500.0,0.00041917,120]
[340026305,1728334325713,-579.67,0.00041917,120]
[340026306,1728334325725,-500.0,0.00041917,120]
[340026307,1728334325737,-500.0,0.00041917,120]
[340026308,1728334325749,-500.0,0.00041917,120]
[340026309,1728334325760,-909.57,0.00041917,120]
[340026310,1728334325771,-699.58,0.00041917,120]
[340026311,1728334325783,-778.22,0.00041917,120]
[340026312,1728334325793,-1176.62,0.00041917,120]
[340026313,1728334325803,-538.25,0.00041917,120]
[340026314,1728334325814,-500.0,0.00041917,120]
[340026315,1728334325826,-628.45,0.00041917,120]
[340026316,1728334325838,-799.02,0.00041917,120]
[340026317,1728334325848,-1344.11,0.00041917,21]
[340026318,1728334325858,-500.0,0.00041917,120]
[340026319,1728334325869,-500.0,0.00041917,120]
[340026320,1728334325879,-1176.49,0.00041917,120]
[340026321,1728334325890,-500.0,0.00041917,120]
[340026322,1728334325901,-538.89,0.00041917,120]
[340026323,1728334325912,-500.0,0.00041917,120]
[340026324,1728334325923,-500.0,0.00041917,120]
[340026325,1728334325934,-2556.51,0.00041917,120]
[340026326,1728334325944,-500.0,0.00041917,120]
[340026327,1728334325953,-500.0,0.00041917,120]
[340026328,1728334325963,-686.35,0.00041917,120]
[340026329,1728334325973,-500.0,0.00041917,120]
[340026330,1728334325982,-1127.5,0.00041917,120]
[340026331,1728334325992,-336.73,0.00041917,7]
[340026332,1728334326001,-618.33,0.00041917,120]
[340026333,1728334326011,-557.71,0.00041917,120]
[340026334,1728334326024,-554.61,0.00041917,120]
[340026335,1728334326036,-724.85,0.00041917,120]
[340026336,1728334326045,-500.0,0.00041917,120]
[340026337,1728334326057,-500.0,0.00041917,120]
[340026338,1728334326067,-500.0,0.00041917,120]
[340026339,1728334326077,-1000.0,0.00041917,120]
[340026340,1728334326088,-575.14,0.00041917,120]
[340026341,1728334326098,-500.0,0.00041917,120]
[340026342,1728334326108,-501.94,0.00041917,120]
[340026343,1728334326119,-188.62203812,0.00041917,120]
[340026344,1728334326130,-500.0,0.00041917,120]
[340026345,1728334326140,-557.73,0.00041917,120]
[340026346,1728334326149,-819.33,0.00041917,120]
[340026347,1728334326159,-521.05,0.00041917,120]
[340026348,1728334326168,-1265.51,0.00041917,120]
[340026349,1728334326179,-518.1,0.00041917,120]
[340026350,1728334326188,-583.01,0.00041917,120]
[340026351,1728334326200,-500.0,0.00041917,120]
[340026352,1728334326209,-500.0,0.00041917,120]
[340026353,1728334326220,-500.0,0.00041917,120]
[340026354,1728334326230,-500.0,0.00041917,120]
[340026355,1728334326240,-1208.8,0.00041917,120]
[340026356,1728334326249,-500.0,0.00041917,120]
[340026357,1728334326259,-500.0,0.00041917,120]
[340026358,1728334326268,-500.0,0.00041917,120]
[340026359,1728334326278,-618.94,0.00041917,120]
[340026360,1728334326288,-500.0,0.00041917,120]
[340026361,1728334326297,-500.0,0.00041917,120]
[340026362,1728334326307,-500.0,0.00041917,120]
[340026363,1728334326317,-718.42,0.00041917,120]
[340026364,1728334326326,-705.43,0.00041917,120]
[340026365,1728334326336,-500.0,0.00041917,120]
[340026366,1728334326346,-512.16,0.00041917,7]
[340026367,1728334326356,-1000.59,0.00041917,120]
[340026368,1728334326366,-500.0,0.00041917,120]
[340026369,1728334326376,-2499.96,0.00041917,120]
[340026370,1728334326386,-500.0,0.00041917,120]
[340026371,1728334326395,-550.18,0.00041917,120]
[340026372,1728334326405,-615.51,0.00041917,120]
[340026373,1728334326415,-500.0,0.00041917,120]
[340026374,1728334326424,-500.0,0.00041917,120]
[340026375,1728334326434,-824.07,0.00041917,120]
[340026376,1728334326443,-1097.32,0.00041917,120]
[340026377,1728334326453,-500.0,0.00041917,120]
[340026378,1728334326463,-500.0,0.00041917,120]
[340026379,1728334326473,-403.44414565,0.00041917,120]
[340026380,1728334326482,-516.16,0.00041917,120]
[340026381,1728334326491,-500.0,0.00041917,120]
[340026382,1728334326501,-500.0,0.00041917,120]
[340026383,1728334326510,-514.48,0.00041917,120]
[340026384,1728334326520,-500.0,0.00041917,120]
[340026385,1728334326530,-505.93914709,0.00041917,120]
[340026386,1728334326539,-584.54,0.00041917,120]
[340026387,1728334326549,-500.0,0.00041917,120]
[340026388,1728334326558,-502.32,0.00041917,120]
[340026389,1728334326568,-500.0,0.00041917,120]
[340026390,1728334326580,-500.0,0.00041917,120]
[340026391,1728334326590,-200.0,0.00041917,120]
[340026392,1728334326601,-659.67,0.00041917,30]
[340026393,1728334326611,-843.64,0.00041917,120]
[340026394,1728334326622,-500.0,0.00041917,120]
[340026395,1728334326632,-826.06,0.00041917,120]
[340026396,1728334326643,-844.53,0.00041917,120]
[340026397,1728334326653,-500.0,0.00041917,120]
[340026398,1728334326663,-500.0,0.00041917,120]
[340026399,1728334326672,-500.0,0.00041917,120]
[340026400,1728334326683,-863.29,0.00041917,120]
[340026401,1728334326694,-714.69,0.00041917,120]
[340026402,1728334326704,-500.0,0.00041917,120]
[340026403,1728334326715,-500.0,0.00041917,120]
[340026404,1728334326728,-500.0,0.00041917,120]
[340026405,1728334326739,-537.33,0.00041917,120]
[340026406,1728334326749,-611.81,0.00041917,120]
[340026407,1728334326759,-500.0,0.00041917,120]
[340026408,1728334326769,-500.0,0.00041917,120]
[340026409,1728334326779,-679.62,0.00041917,120]
[340026410,1728334326791,-769.77,0.00041917,120]
[340026411,1728334326801,-502.33507828,0.00041917,120]
[340026412,1728334326814,-944.22,0.00041917,120]
[340026413,1728334326825,-500.0,0.00041917,120]
[340026414,1728334326835,-514.42,0.00041917,120]
[340026415,1728334326847,-677.66,0.00041917,120]
[340026416,1728334326857,-3000.0,0.00041972,60]
[340026417,1728334326867,-2000.0,0.00042,42]
[340026418,1728334326878,-264.36040253,0.00042,120]
[340026419,1728334326890,-415.43523823,0.00042,120]
[340026420,1728334326901,-1000.0,0.00042,120]
[340026421,1728334326910,-1000.0,0.00042,120]
[340026422,1728334326924,-250.0,0.00042,30]
[340026423,1728334326933,-229.0,0.00042,2]
[340026424,1728334326943,-229.0,0.00042,2]
[340026425,1728334326955,-229.0,0.00042,2]
[340026426,1728334326966,-152.0,0.00042121,31]
[340026427,1728334326975,-1557.94,0.00042191,120]
[340026428,1728334326986,-500.0,0.00042191,120]